bitfinex-derivatives/quotes_SOLF0:USTF0_20241029
["timestamp","ask_amount","ask_price","bid_price","bid_amount"]
[1730163791905,16.25778674,178.12,178.06,2.8094]
[1730163792511,16.25778674,178.12,178.07,2.8093]
[1730163793915,16.25778674,178.12,178.06,2.8095]
[1730163795709,2.8089,178.1,178.05,2.8097]
[1730163795909,4.5,178.09,178.05,2.8097]
[1730163798722,4.5,178.09,178.0,2.5494]
[1730163798918,4.5,178.09,178.03,13.44918674]
[1730163799506,13.44918674,178.12,178.03,13.44918674]
[1730163799705,4.5,178.11,178.03,13.44918674]
[1730163800120,4.5,178.11,178.09,2.809]
[1730163801419,4.5,178.11,178.07,2.8093]
[1730163802410,4.5,178.11,178.08,2.8092]
[1730163802614,4.5,178.11,178.03,13.44918674]
[1730163803207,4.5,178.11,178.09,2.809]
[1730163805927,4.5,178.11,178.08,2.8091]
[1730163808525,13.13454714,178.11,178.08,2.8091]
[1730163809028,4.5,178.11,178.09,2.809]
[1730163809823,4.5,178.11,178.05,8.63454714]
[1730163810016,13.13454714,178.11,178.05,8.63454714]
[1730163810317,8.63454714,178.1,178.0,2.5494]
[1730163810522,8.63454714,178.1,178.07,2.8093]
[1730163810928,4.5,178.11,178.0,2.5494]
[1730163810929,8.63454714,178.08,178.02,8.63454714]
[1730163811132,4.4,178.07,178.05,2.8096]
[1730163811628,4.4,178.07,178.04,2.8098]
[1730163812325,4.4,178.07,178.05,2.8097]
[1730163812719,4.4,178.07,178.0,2.5494]
[1730163813532,4.4,178.07,177.97,13.49688949]
[1730163813736,2.8095,178.06,178.01,2.8103]
[1730163814232,2.77397678,178.05,178.01,2.8103]
[1730163814931,2.8099,178.04,177.96,2.5369]
[1730163815127,7.21719326,178.03,177.96,2.5369]
[1730163815435,7.21719326,178.03,177.98,2.8107]
[1730163816017,23.52418275,178.03,177.98,2.8107]
[1730163816623,20.71408275,178.03,177.93,1.2371]
[1730163817416,2.8102,178.02,177.96,2.811]
[1730163818725,2.8102,178.02,177.97,2.8109]
[1730163820236,23.52408275,178.03,177.97,2.8109]
[1730163820930,20.71408275,178.03,177.99,2.8106]
[1730163821127,20.71408275,178.03,177.92,13.49688949]
[1730163821128,2.81719326,178.03,177.94,13.49688949]
[1730163821328,4.4,178.02,178.01,2.8103]
[1730163822738,2.79013706,178.06,177.96,13.49688949]
[1730163822939,4.4,178.05,177.98,13.49688949]
[1730163823335,4.4,178.05,178.04,2.8099]
[1730163823837,4.4,178.05,178.03,2.81]
[1730163824840,4.4,178.05,178.01,2.8102]
[1730163826933,4.4,178.05,178.03,2.81]
[1730163827135,4.4,178.05,177.98,13.49688949]
[1730163827328,4.4,178.05,177.97,2.5478]
[1730163828137,7.2098,178.05,178.0,2.8104]
[1730163829140,4.4,178.05,178.0,2.8104]
[1730163829340,4.4,178.05,177.99,2.8106]
[1730163829540,4.4,178.05,177.97,2.5478]
[1730163830338,4.4,178.05,178.0,2.8103]
[1730163830733,4.4,178.05,177.98,13.49688949]
[1730163830939,4.4,178.05,178.03,2.8099]
[1730163832247,4.4,178.05,178.04,2.8099]
[1730163832741,1.2119,178.13,178.03,13.49688949]
[1730163832940,4.4,178.12,178.03,13.49688949]
[1730163833343,4.4,178.12,178.05,2.8096]
[1730163833536,4.4,178.12,178.03,13.49688949]
[1730163834240,4.4,178.12,178.07,2.8093]
[1730163834437,1.2119,178.13,178.03,13.49688949]
[1730163834639,223.7511963,178.23,177.99,1.2388]
[1730163834640,1.2248,178.21,178.07,13.49688949]
[1730163834843,13.49688949,178.19,178.11,2.8086]
[1730163835039,2.8078,178.18,178.07,13.49688949]
[1730163835347,2.8078,178.18,178.04,6.9438]
[1730163835348,2.82921134,178.18,178.09,13.49688949]
[1730163835552,4.4,178.17,178.13,2.8084]
[1730163835742,2.84664264,178.16,178.13,2.8084]
[1730163835942,4.4,178.17,178.13,2.8084]
[1730163836242,7.19041266,178.17,178.11,2.8087]
[1730163836441,4.4,178.17,178.09,13.49688949]
[1730163836841,2.8074,178.2,178.13,2.8083]
[1730163837037,4.4,178.19,178.13,2.8083]
[1730163838548,4.4,178.19,178.09,13.49688949]
[1730163838734,2.8079,178.17,178.12,2.8086]
[1730163838936,2.80561558,178.17,178.07,13.49688949]
[1730163839141,17.89688949,178.19,178.07,13.49688949]
[1730163839539,2.808,178.16,178.07,13.49688949]
[1730163839738,7.1492691,178.15,178.1,2.8089]
[1730163841550,4.34,178.15,178.12,2.8085]
[1730163841756,2.4544,178.21,178.12,13.49688949]
[1730163842046,4.34,178.18,178.12,13.49688949]
[1730163842260,4.34,178.18,178.14,2.8083]
[1730163842547,7.08914821,178.18,178.08,4.34]
[1730163842750,7.08914821,178.18,178.07,13.49688949]
[1730163843449,2.8079,178.17,178.11,2.8086]
[1730163844345,7.1476,178.18,178.09,13.49688949]
[1730163844742,9.93903732,178.18,178.09,13.49688949]
[1730163845947,4.34,178.18,178.12,13.49688949]
[1730163846144,1.2296,178.21,178.12,13.49688949]
[1730163846353,4.34,178.2,178.16,2.8078]
[1730163846554,4.34,178.2,178.16,11.44172463]
[1730163847854,4.34,178.2,178.16,8.63392463]
[1730163848451,1.2296,178.21,178.13,13.49026819]
[1730163848653,4.34,178.19,178.13,13.49026819]
[1730163848847,4.34,178.19,178.14,2.8081]
[1730163849045,4.34,178.19,178.13,13.49026819]
[1730163849753,4.34,178.2,178.13,13.49026819]
[1730163851764,4.34,178.2,178.11,13.49026819]
[1730163851972,2.8075,178.19,178.11,13.49026819]
[1730163852266,4.34,178.2,178.14,2.8081]
[1730163853351,4.34,178.2,178.15,2.808]
[1730163853652,4.34,178.2,178.14,13.49026819]
[1730163854562,7.1474,178.2,178.14,16.29846819]
[1730163854756,4.34,178.2,178.12,2.5916]
[1730163854957,2.8083,178.15,178.09,16.29926819]
[1730163855165,7.20154241,178.15,178.07,1.2546]
[1730163855456,4.34,178.15,178.07,1.2546]
[1730163855663,16.34478462,178.14,178.07,1.2546]
[1730163855859,13.49026819,178.14,178.03,1.1966]
[1730163856168,2.8086,178.12,178.06,2.8095]
[1730163856364,4.34,178.11,178.06,2.8095]
[1730163858171,4.34,178.11,178.07,2.8094]
[1730163860161,2.8089,178.1,178.04,2.8098]
[1730163860557,4.34,178.11,178.03,2.4512]
[1730163860972,2.8089,178.1,178.04,2.8098]
[1730163861964,2.8092,178.09,178.03,5.2612]
[1730163862265,4.34,178.11,178.03,2.4512]
[1730163862465,2.79353089,178.15,178.04,13.49026819]
[1730163862668,4.34,178.14,178.07,13.49026819]
[1730163862867,4.34,178.14,178.09,2.809]
[1730163863572,4.34,178.14,178.1,2.8089]
[1730163864871,1.189,178.16,178.04,1.2586]
[1730163864872,2.8074,178.2,178.14,2.8082]
[1730163865170,4.34,178.19,178.11,13.49026819]
[1730163865558,4.34,178.18,178.14,13.49026819]
[1730163866170,4.34,178.18,178.15,2.8081]
[1730163866471,4.34,178.18,178.14,13.49026819]
[1730163866662,4.34,178.18,178.15,2.808]
[1730163867368,2.8071,178.22,178.16,2.8078]
[1730163867563,17.83026819,178.2,178.07,4.34]
[1730163867759,17.83026819,178.2,178.09,13.49026819]
[1730163868681,2.8077,178.18,178.12,2.8086]
[1730163869060,2.8079,178.17,178.11,2.8087]
[1730163869273,17.83026819,178.2,178.04,19.14886819]
[1730163869274,13.49026819,178.15,178.04,19.14886819]
[1730163869471,4.4,178.14,178.04,19.14886819]
[1730163869767,2.8085,178.13,178.07,2.8092]
[1730163869972,4.4,178.14,178.04,14.74886819]
[1730163870272,4.4,178.14,178.09,2.809]
[1730163870463,4.4,178.14,178.04,14.74886819]
[1730163870670,4.4,178.14,178.07,13.49026819]
[1730163871473,4.4,178.14,178.1,2.8089]
[1730163872173,2.8085,178.13,178.07,2.8093]
[1730163872573,4.4,178.14,178.04,14.74886819]
[1730163873276,7.2083,178.14,178.08,2.8092]
[1730163875781,7.2083,178.14,178.04,14.74886819]
[1730163875782,4.4,178.14,178.04,14.74886819]
[1730163876078,4.4,178.14,178.09,2.8089]
[1730163879569,4.4,178.14,178.11,2.8086]
[1730163879770,4.05908583,178.18,178.09,13.49026819]
[1730163880077,4.4,178.17,178.09,13.49026819]
[1730163880581,4.4,178.17,178.11,13.49026819]
[1730163880883,4.4,178.18,178.17,2.8078]
[1730163881183,4.4,178.18,178.13,13.49026819]
[1730163881374,4.4,178.18,178.15,2.808]
[1730163882274,4.4,178.18,178.16,2.8078]
[1730163884181,4.4,178.18,178.13,13.49026819]
[1730163884371,4.4,178.18,178.17,2.8078]
[1730163884986,4.4,178.22,178.18,2.8075]
[1730163885284,4.4,178.22,178.16,13.49026819]
[1730163885475,4.4,178.22,178.18,2.8076]
[1730163886274,16.24149682,178.27,178.12,2.4735]
[1730163886275,4.69770549,178.31,178.2,13.49026819]
[1730163886476,4.4,178.26,178.23,13.49026819]
[1730163886781,231.42201712,178.32,178.23,13.49026819]
[1730163886782,4.4,178.28,178.23,13.49026819]
[1730163886976,5.56940643,178.31,178.25,2.8065]
[1730163887284,4.4,178.3,178.23,13.49026819]
[1730163887487,226.4696048,178.32,178.25,2.8064]
[1730163887681,4.4,178.3,178.25,16.29666819]
[1730163888482,4.4,178.3,178.25,13.49026819]
[1730163889178,4.4,178.3,178.26,2.8064]
[1730163889387,223.6640048,178.32,178.25,13.49026819]
[1730163889583,228.0440048,178.32,178.25,13.49026819]
[1730163889788,228.0440048,178.32,178.27,2.8061]
[1730163890987,228.0440048,178.32,178.25,13.49026819]
[1730163891183,228.0440048,178.32,178.25,16.29666819]
[1730163891583,228.0440048,178.32,178.25,13.49026819]
[1730163891785,228.0440048,178.32,178.24,2.8067]
[1730163892492,2.8059,178.3,178.23,16.29706819]
[1730163892690,228.0440048,178.32,178.23,16.29706819]
[1730163892891,4.38,178.32,178.23,13.49026819]
[1730163893092,16.33318233,178.32,178.23,13.49026819]
[1730163893295,2.8058,178.3,178.24,2.8066]
[1730163893889,7.1856,178.32,178.25,2.8065]
[1730163894291,7.1856,178.32,178.25,13.49026819]
[1730163895299,7.1856,178.32,178.26,2.8063]
[1730163897803,7.1856,178.32,178.25,13.49026819]
[1730163897804,4.38,178.32,178.25,13.49026819]
[1730163898002,4.38,178.32,178.27,2.8062]
[1730163898202,4.38,178.32,178.25,13.49026819]
[1730163899399,7.1855,178.32,178.26,2.8064]
[1730163900887,7.1855,178.32,178.21,2.5291]
[1730163900888,2.8059,178.3,178.24,2.8066]
[1730163901488,4.38,178.32,178.21,16.01936819]
[1730163901705,2.8065,178.26,178.18,13.49026819]
[1730163901888,4.34,178.26,178.18,13.49026819]
[1730163902089,4.34,178.26,178.23,16.29696819]
[1730163902291,4.34,178.26,178.21,13.49026819]
[1730163902896,4.34,178.26,178.23,13.49026819]
[1730163903309,4.34,178.29,178.25,13.49026819]
[1730163903601,4.34,178.31,178.26,2.8063]
[1730163903803,4.34,178.31,178.21,3.724]
[1730163904105,4.34,178.31,178.23,13.49026819]
[1730163904595,4.34,178.31,178.24,2.8067]
[1730163904795,7.1456,178.31,178.25,13.49026819]
[1730163905294,4.34,178.31,178.27,13.49026819]
[1730163905492,4.34,178.31,178.27,16.29636819]
[1730163905692,60.68,178.35,178.27,13.49026819]
[1730163905896,4.34,178.34,178.27,13.49026819]
[1730163906099,2.8055,178.32,178.27,13.49026819]
[1730163906299,4.34,178.34,178.27,13.49026819]
[1730163907299,2.8053,178.33,178.27,16.29646819]
[1730163908005,4.34,178.34,178.29,2.8058]
[1730163908907,4.34,178.34,178.27,13.49026819]
[1730163909105,4.34,178.34,178.25,13.49026819]
[1730163909608,2.8055,178.32,178.26,2.8062]
[1730163910208,4.34,178.34,178.25,13.49026819]
[1730163910410,2.8053,178.33,178.27,2.8062]
[1730163910998,2.8053,178.33,178.27,16.29646819]
[1730163912512,7.1452,178.34,178.28,2.806]
[1730163913302,60.68,178.35,178.3,2.8057]
[1730163913502,4.34,178.34,178.29,13.49026819]
[1730163913703,4.34,178.34,178.21,3.724]
[1730163913704,4.34,178.35,178.32,13.49026819]
[1730163914008,4.34,178.35,178.33,2.8053]
[1730163914207,4.34,178.38,178.32,13.49026819]
[1730163914508,4.20186189,178.37,178.32,13.49026819]
[1730163914709,14.96709915,178.38,178.29,2.5358]
[1730163915012,4.20188126,178.37,178.29,2.5358]
[1730163915311,2.8051,178.35,178.29,5.3416]
[1730163915617,4.34,178.34,178.28,13.49026819]
[1730163916604,4.34,178.34,178.29,2.8059]
[1730163916807,4.34,178.34,178.28,13.49026819]
[1730163917010,4.34,178.37,178.32,13.49026819]
[1730163917308,4.34,178.37,178.32,16.29566819]
[1730163917714,4.34,178.37,178.32,13.49026819]
[1730163918214,4.34,178.38,178.35,13.49026819]
[1730163918414,7.75801232,178.42,178.37,13.49026819]
[1730163918605,4.69888447,178.43,178.37,13.49026819]
[1730163918606,4.34,178.43,178.37,13.49026819]
[1730163918806,4.20716426,178.42,178.37,13.49026819]
[1730163919123,2.804,178.41,178.37,13.49026819]
[1730163920309,4.34,178.45,178.39,16.29446819]
[1730163920514,4.34,178.45,178.41,13.49026819]
[1730163923123,4.34,178.47,178.43,13.49026819]
[1730163923509,4.34,178.5,178.45,13.49026819]
[1730163923716,68.37801232,178.54,178.45,13.49026819]
[1730163923916,8.53554324,178.53,178.45,13.49026819]
[1730163924213,4.34,178.53,178.45,16.29356819]
[1730163925009,4.34,178.53,178.45,13.49026819]
[1730163925218,2.8024,178.52,178.45,16.29366819]
[1730163926609,4.34,178.53,178.37,15.96856819]
[1730163926922,13.49026819,178.52,178.41,13.49026819]
[1730163928221,2.8034,178.46,178.41,13.49026819]
[1730163928424,2.8034,178.46,178.38,16.29456819]
[1730163928425,4.34,178.46,178.38,16.29456819]
[1730163928724,2.8035,178.45,178.39,2.8043]
[1730163929320,4.34,178.46,178.41,13.49026819]
[1730163929509,4.34,178.46,178.43,13.49026819]
[1730163930716,4.34,178.46,178.37,15.96856819]
[1730163930717,4.34,178.46,178.4,13.49026819]
[1730163931215,7.1433,178.46,178.4,13.49026819]
[1730163931413,7.1433,178.46,178.38,13.49026819]
[1730163931414,4.34,178.46,178.38,13.49026819]
[1730163931812,4.34,178.46,178.38,16.29466819]
[1730163931813,2.8034,178.45,178.38,16.29466819]
[1730163932115,4.34,178.46,178.4,13.49026819]
[1730163932710,4.34,178.46,178.4,16.29436819]
[1730163932711,7.1432,178.46,178.4,16.29436819]
[1730163934817,2.8035,178.45,178.4,13.49026819]
[1730163936118,2.8035,178.45,178.37,2.4783]
[1730163936119,7.19452748,178.46,178.38,13.49026819]
[1730163936720,7.19452748,178.46,178.37,1.2893]
[1730163936916,1.2342,178.45,178.36,14.77526819]
[1730163937113,1.2342,178.45,178.33,17.83026819]
[1730163937114,14.72446819,178.45,178.33,17.83026819]
[1730163937318,2.8045,178.38,178.33,13.49026819]
[1730163937518,2.8045,178.38,178.32,2.4197]
[1730163937519,4.34,178.39,178.31,13.49026819]
[1730163937819,4.34,178.38,178.31,13.49026819]
[1730163938018,7.1447,178.37,178.31,13.49026819]
[1730163938717,7.1447,178.37,178.31,16.29576819]
[1730163938926,4.34,178.37,178.31,16.29576819]
[1730163939123,4.34,178.37,178.31,13.49026819]
[1730163939325,4.34,178.37,178.33,13.49026819]
[1730163939728,4.34,178.37,178.33,16.29546819]
[1730163940529,4.34,178.37,178.33,13.49026819]
[1730163940726,4.34,178.37,178.34,2.805]
[1730163942131,4.34,178.37,178.35,2.8049]
[1730163942431,4.34,178.41,178.35,13.49026819]
[1730163942828,1.2342,178.45,178.35,13.49026819]
[1730163943024,4.34,178.44,178.35,13.49026819]
[1730163944031,2.8038,178.43,178.37,2.8047]
[1730163944922,4.34,178.44,178.35,13.49026819]
[1730163945233,4.34,178.44,178.32,2.8053]
[1730163945234,13.49026819,178.42,178.32,2.8053]
[1730163945533,13.49026819,178.42,178.29,14.68556819]
[1730163945734,2.8045,178.39,178.3,2.8057]
[1730163945929,4.34,178.38,178.3,2.8057]
[1730163946139,4.34,178.37,178.3,2.8057]
[1730163946437,7.1448,178.37,178.3,2.8057]
[1730163946738,4.34,178.37,178.27,21.5755696]
[1730163947229,2.8053,178.34,178.28,2.806]
[1730163947429,4.34,178.33,178.28,2.806]
[1730163947926,4.34,178.33,178.29,2.8059]
[1730163948327,4.34,178.33,178.27,21.5755696]
[1730163949134,4.34,178.33,178.28,2.806]
[1730163949736,4.34,178.33,178.27,21.5755696]
[1730163949932,4.34,178.33,178.29,2.8059]
[1730163950239,4.34,178.35,178.29,2.8059]
[1730163951027,7.145,178.35,178.29,2.8059]
[1730163951442,4.34,178.35,178.31,2.8056]
[1730163951635,4.34,178.35,178.27,21.5755696]
[1730163952444,7.145,178.35,178.29,2.8059]
[1730163959343,2.805,178.35,178.29,2.8059]
[1730163959544,4.34,178.34,178.29,2.8059]
[1730163960945,2.8055,178.32,178.26,2.8064]
[1730163961143,5.6056,178.34,178.24,22.8334696]
[1730163961454,8.4108,178.34,178.27,2.8061]
[1730163961947,5.6056,178.34,178.27,2.8061]
[1730163962149,2.8054,178.33,178.27,2.8061]
[1730163963655,5.6056,178.34,178.24,22.8334696]
[1730163963840,2.8056,178.32,178.26,2.8064]
[1730163964749,5.6056,178.34,178.24,22.8334696]
[1730163964942,2.8059,178.29,178.24,1.2579]
[1730163965148,4.34,178.29,178.24,1.2579]
[1730163965544,4.34,178.29,178.18,21.5755696]
[1730163965754,4.34,178.29,178.17,3.647]
[1730163966056,1.2948,178.28,178.17,3.647]
[1730163966248,2.8066,178.25,178.19,2.8074]
[1730163966441,4.34,178.24,178.19,2.8074]
[1730163966650,4.34,178.24,178.17,3.647]
[1730163966848,4.34,178.24,178.2,2.8073]
[1730163969244,4.34,178.24,178.18,2.8076]
[1730163969446,4.34,178.24,178.15,13.48542284]
[1730163969649,2.8071,178.22,178.13,17.82542284]
[1730163969852,17.82542284,178.24,178.17,2.8078]
[1730163971351,2.8069,178.23,178.17,2.8078]
[1730163973553,2.8071,178.22,178.16,2.808]
[1730163976155,17.82542284,178.24,178.18,2.8075]
[1730163976454,4.04963504,178.27,178.18,13.48542284]
[1730163976648,1.1915,178.27,178.23,2.8067]
[1730163976952,4.34,178.26,178.21,13.48542284]
[1730163977256,4.34,178.26,178.23,2.8067]
[1730163977553,4.34,178.26,178.21,13.48542284]
[1730163977956,4.34,178.26,178.24,2.8066]
[1730163978357,13.48542284,178.34,178.23,13.48542284]
[1730163978657,2.4799,178.36,178.25,13.48542284]
[1730163978658,4.34,178.33,178.25,13.48542284]
[1730163979458,4.34,178.33,178.27,2.8062]
[1730163980049,4.34,178.33,178.25,13.48542284]
[1730163980251,4.34,178.33,178.27,13.48542284]
[1730163980655,4.34,178.33,178.28,2.8059]
[1730163980857,4.34,178.33,178.27,13.48542284]
[1730163981460,4.34,178.33,178.29,2.8058]
[1730163983355,4.34,178.33,178.26,13.48542284]
[1730163983665,4.34,178.33,178.23,4.34]
[1730163983666,2.8056,178.32,178.24,13.48542284]
[1730163984455,2.8057,178.31,178.25,2.8065]
[1730163990063,13.48542284,178.32,178.22,13.48542284]
[1730163990554,4.34,178.31,178.22,13.48542284]
[1730163990753,2.8059,178.3,178.24,2.8067]
[1730163991061,4.34,178.31,178.22,13.48542284]
[1730163991857,2.8059,178.29,178.23,2.8067]
[1730163992065,4.34,178.31,178.19,14.71902284]
[1730163992450,2.8064,178.27,178.21,2.8071]
[1730163992658,4.34,178.26,178.21,2.8071]
[1730163993061,4.34,178.26,178.19,14.71902284]
[1730163993262,4.34,178.26,178.19,4.041]
[1730163993263,7.1465,178.26,178.19,4.041]
[1730163993561,7.1465,178.26,178.19,1.2336]
[1730163994264,7.1465,178.26,178.21,2.8072]
[1730163995462,7.1465,178.26,178.19,1.2336]
[1730163995665,2.8066,178.25,178.19,4.0409]
[1730163995865,4.34,178.26,178.19,1.2336]
[1730163997152,7.1464,178.26,178.2,2.8072]
[1730163997766,13.48542284,178.33,178.21,13.48542284]
[1730163997964,4.34,178.32,178.21,13.48542284]
[1730163998159,2.8058,178.3,178.25,2.8065]
[1730164000175,4.34,178.32,178.25,2.8065]
[1730164000358,2.8056,178.31,178.25,2.8065]
[1730164000674,4.34,178.3,178.25,2.8065]
[1730164002168,4.34,178.3,178.23,13.48542284]
[1730164002469,4.34,178.32,178.26,13.48542284]
[1730164003373,4.34,178.32,178.27,2.8061]
[1730164003573,4.34,178.32,178.26,13.48542284]
[1730164004566,3.6601,178.36,178.26,13.48542284]
[1730164004871,4.34,178.35,178.3,2.8057]
[1730164005465,7.145,178.35,178.3,2.8057]
[1730164005664,7.145,178.35,178.29,2.8059]
[1730164006173,4.34,178.35,178.31,2.8055]
[1730164006780,6.4649,178.36,178.31,2.8055]
[1730164006968,4.34,178.35,178.31,2.8055]
[1730164007169,4.34,178.35,178.28,13.48542284]
[1730164007369,4.34,178.34,178.31,2.8054]
[1730164010367,2.5022,178.4,178.31,13.48542284]
[1730164010570,4.34,178.39,178.36,8.62477612]
[1730164012576,4.34,178.39,178.34,2.805]
[1730164013079,7.1444,178.39,178.34,2.805]
[1730164013281,7.1444,178.39,178.31,16.28223272]
[1730164013282,4.34,178.39,178.31,16.28223272]
[1730164013580,4.34,178.39,178.28,13.47663272]
[1730164013581,17.81663272,178.39,178.28,13.47663272]
[1730164013773,2.8049,178.36,178.3,2.8057]
[1730164013974,4.34,178.35,178.3,2.8057]
[1730164014275,4.34,178.35,178.28,13.47663272]
[1730164014481,4.34,178.35,178.31,2.8056]
[1730164015575,4.34,178.35,178.32,2.8053]
[1730164015776,236.99836417,178.41,178.31,13.47663272]
[1730164015777,4.34,178.37,178.31,13.47663272]
[1730164016479,4.34,178.37,178.33,2.8052]
[1730164018005,2.8041,178.41,178.33,13.47663272]
[1730164018192,13.47663272,178.38,178.26,1.2179]
[1730164018383,2.742693,178.37,178.26,14.69453272]
[1730164018585,2.8052,178.34,178.29,2.8059]
[1730164018781,7.1452,178.34,178.29,2.8059]
[1730164018989,4.34,178.34,178.28,2.806]
[1730164019289,4.34,178.34,178.26,14.69453272]
[1730164019796,4.34,178.34,178.3,2.8056]
[1730164023880,4.34,178.34,178.26,14.69453272]
[1730164024095,4.34,178.34,178.29,13.47663272]
[1730164024480,7.1448,178.37,178.32,2.8054]
[1730164025085,4.34,178.36,178.32,2.8054]
[1730164025492,4.34,178.36,178.29,13.47663272]
[1730164025691,4.34,178.36,178.33,2.8053]
[1730164026286,4.34,178.36,178.29,13.47663272]
[1730164026486,4.34,178.36,178.32,2.8054]
[1730164027900,1.2322,178.42,178.38,2.8045]
[1730164028083,1.2475,178.43,178.34,13.47663272]
[1730164028281,4.34,178.42,178.34,13.47663272]
[1730164028483,2.8042,178.41,178.35,2.8049]
[1730164029087,4.34,178.42,178.34,13.47663272]
[1730164029293,7.1439,178.42,178.37,2.8046]
[1730164029785,4.34,178.42,178.37,2.8046]
[1730164031892,7.1439,178.42,178.37,2.8046]
[1730164032296,17.81663272,178.42,178.31,1.2272]
[1730164032497,17.81663272,178.42,178.31,13.47663272]
[1730164032688,1.2108,178.41,178.31,13.47663272]
[1730164033093,2.8044,178.39,178.33,2.8052]
[1730164033299,4.34,178.38,178.31,13.47663272]
[1730164034198,4.34,178.38,178.33,2.8053]
[1730164036102,4.34,178.38,178.31,13.47663272]
[1730164036103,2.8047,178.37,178.31,16.28203272]
[1730164036287,4.34,178.38,178.31,16.28203272]
[1730164036694,2.8049,178.36,178.31,16.28203272]
[1730164037100,4.34,178.38,178.32,2.8054]
[1730164038401,2.8047,178.37,178.32,2.8054]
[1730164039104,4.34,178.38,178.32,2.8054]
[1730164039304,7.1445,178.38,178.32,2.8054]
[1730164039810,2.8047,178.37,178.28,13.47663272]
[1730164040693,2.8047,178.37,178.31,2.8055]
[1730164041292,2.76216822,178.37,178.28,13.47663272]
[1730164041495,2.76216822,178.37,178.26,5.5579]
[1730164041496,1.2475,178.36,178.29,2.8059]
[1730164041696,3.99394857,178.36,178.29,2.8059]
[1730164042306,2.8052,178.34,178.29,2.8059]
[1730164042501,4.34,178.33,178.29,2.8059]
[1730164044707,4.34,178.33,178.28,13.47663272]
[1730164045497,4.34,178.33,178.31,2.8055]
[1730164045903,4.34,178.33,178.28,13.47663272]
[1730164046202,4.34,178.33,178.32,2.8054]
[1730164046909,4.34,178.33,178.31,8.62926782]
[1730164047108,4.34,178.33,178.31,11.43486782]
[1730164047900,15.77456782,178.33,178.28,2.806]
[1730164048104,4.34,178.33,178.28,8.62926782]
[1730164048905,4.34,178.33,178.29,2.8059]
[1730164049104,4.34,178.33,178.28,8.62926782]
[1730164049504,11.43476782,178.32,178.28,8.62926782]
[1730164050011,8.62926782,178.32,178.28,8.62926782]
[1730164050806,4.34,178.33,178.23,4.34]
[1730164051007,4.34,178.33,178.31,8.62926782]
[1730164051206,4.34,178.33,178.29,8.62926782]
[1730164051407,4.34,178.33,178.29,11.43506782]
[1730164052004,4.34,178.33,178.29,2.8058]
[1730164052316,4.34,178.33,178.28,11.43526782]
[1730164052706,4.34,178.33,178.28,8.62926782]
[1730164052909,4.34,178.33,178.29,2.8058]
[1730164054814,4.34,178.33,178.3,11.43506782]
[1730164056109,4.34,178.33,178.3,2.8058]
[1730164057011,4.34,178.33,178.28,8.62926782]
[1730164057216,4.34,178.33,178.29,2.8059]
[1730164060417,4.34,178.33,178.28,8.62926782]
[1730164060719,4.34,178.33,178.3,8.62926782]
[1730164062516,4.34,178.33,178.3,11.43496782]
[1730164064922,15.77466782,178.33,178.27,2.8061]
[1730164065217,12.96926782,178.33,178.26,8.62926782]
[1730164065721,12.96926782,178.33,178.24,8.62926782]
[1730164065722,8.62926782,178.3,178.24,8.62926782]
[1730164066024,4.34,178.29,178.24,8.62926782]
[1730164066224,7.1459,178.29,178.24,11.43586782]
[1730164066622,7.1459,178.29,178.2,178.20459813]
[1730164066623,8.62926782,178.26,178.2,8.62926782]
[1730164066816,2.82989265,178.28,178.2,11.43646782]
[1730164066817,15.77586782,178.25,178.2,11.43646782]